bitfinex/quotes_BTCUSD_20220207
["timestamp","ask_amount","ask_price","bid_price","bid_amount"]
[1644277622579,0.00102208,43948.0,43942.0,0.0492015]
[1644277623378,0.00029899,43948.0,43942.0,0.0492015]
[1644277623580,0.00072308,43948.0,43942.0,0.0492015]
[1644277623778,0.00102207,43948.0,43942.0,0.0492015]
[1644277624579,0.00029899,43948.0,43942.0,0.0492015]
[1644277624779,0.00072308,43948.0,43942.0,0.0992015]
[1644277624980,0.00102207,43948.0,43942.0,0.0492015]
[1644277625617,0.00029899,43948.0,43942.0,0.0492015]
[1644277625816,0.01,43949.0,43942.0,0.0492015]
[1644277626016,0.00102207,43948.0,43942.0,0.34815862]
[1644277626217,0.00072308,43948.0,43942.0,0.34815862]
[1644277626414,0.00102207,43948.0,43943.0,0.056894]
[1644277626616,0.00602207,43949.0,43944.0,0.2]
[1644277626820,0.00029952,43948.0,43944.0,0.2]
[1644277627017,0.00602207,43949.0,43944.0,0.2]
[1644277627218,0.00029952,43948.0,43944.0,0.2]
[1644277627420,0.00632159,43949.0,43945.0,0.056891]
[1644277627619,0.00029952,43948.0,43945.0,0.056891]
[1644277627818,0.00602207,43949.0,43945.0,0.056891]
[1644277628017,0.00632159,43949.0,43945.0,0.056891]
[1644277628219,0.00602207,43949.0,43945.0,0.056891]
[1644277628618,0.00632159,43949.0,43945.0,0.056891]
[1644277628870,0.00632159,43949.0,43945.0,0.11378014]
[1644277629067,0.00632159,43949.0,43946.0,0.05]
[1644277629267,0.00602207,43949.0,43947.0,0.056887]
[1644277629866,0.00702207,43949.0,43947.0,0.056887]
[1644277630667,0.00394259,43949.0,43947.0,0.056887]
[1644277631270,0.00394259,43949.0,43947.0,0.11377421]
[1644277631469,0.00394259,43949.0,43947.0,0.16377421]
[1644277632473,0.00102258,43950.0,43948.0,0.35]
[1644277632716,0.00072306,43950.0,43948.0,0.35]
[1644277632915,0.00329952,43951.0,43949.0,0.056889]
[1644277633118,0.003,43951.0,43949.0,0.056889]
[1644277633315,0.00372305,43951.0,43949.0,0.056889]
[1644277633917,0.00372305,43951.0,43948.0,0.35]
[1644277634115,0.003,43951.0,43948.0,0.35]
[1644277634418,0.003,43951.0,43949.0,0.1137754]
[1644277635517,0.003,43951.0,43949.0,0.1637754]
[1644277635918,0.003,43951.0,43949.0,0.056889]
[1644277636220,0.003,43951.0,43945.0,0.05]
[1644277636464,0.00329952,43951.0,43945.0,0.05]
[1644277636664,0.00329952,43951.0,43944.0,0.163773]
[1644277636865,0.00072306,43950.0,43944.0,0.163773]
[1644277637068,0.00102258,43950.0,43946.0,0.056893]
[1644277637468,0.00102258,43950.0,43942.0,0.39683217]
[1644277637469,0.00102258,43950.0,43942.0,0.23141752]
[1644277637965,0.00102258,43950.0,43942.0,0.0992015]
[1644277637966,0.00102257,43950.0,43942.0,0.0992015]
[1644277638266,0.36966638,43960.0,43944.0,0.056895]
[1644277638468,0.04389547,43955.0,43942.0,0.0492015]
[1644277638669,0.113811,43951.0,43942.0,0.0492015]
[1644277638869,0.056906,43951.0,43942.0,0.0492015]
[1644277639066,0.02945798,43951.0,43942.0,0.0492015]
[1644277639467,0.1236,43955.0,43942.0,0.0492015]
[1644277639872,0.05689952,43952.0,43942.0,0.0492015]
[1644277640125,0.056901,43951.0,43942.0,0.0492015]
[1644277640622,0.29225345,43950.0,43942.0,0.0492015]
[1644277640824,0.056907,43949.0,43942.0,0.0492015]
[1644277641921,0.113814,43949.0,43942.0,0.0492015]
[1644277642118,0.056907,43949.0,43942.0,0.0492015]
[1644277642720,0.29225345,43950.0,43943.0,0.00072316]
[1644277642921,0.324305,43949.0,43943.0,0.00072316]
[1644277643723,0.056909,43948.0,43943.0,0.00072316]
[1644277643971,0.324305,43946.0,43944.0,0.00072316]
[1644277644170,0.30282155,43945.0,43944.0,0.00072316]
[1644277644370,0.62712655,43945.0,43944.0,0.00072316]
[1644277644778,0.324305,43945.0,43944.0,0.00072316]
[1644277644974,0.056906,43947.0,43942.0,0.0492015]
[1644277645275,0.61284067,43946.0,43942.0,0.0492015]
[1644277645479,0.324305,43946.0,43942.0,0.0492015]
[1644277645873,0.056909,43945.0,43942.0,0.0492015]
[1644277646074,0.36002,43944.0,43942.0,0.0492015]
[1644277646273,0.056913,43944.0,43942.0,0.0492015]
[1644277646473,0.11382444,43944.0,43942.0,0.0492015]
[1644277646672,0.324305,43943.0,43942.0,0.0492015]
[1644277646974,0.62474434,43943.0,43942.0,0.0492015]
[1644277647373,0.68165734,43943.0,43942.0,0.0492015]
[1644277648419,0.67165734,43943.0,43942.0,0.0492015]
[1644277649725,0.314305,43943.0,43942.0,0.0492015]
[1644277650326,0.61779509,43943.0,43942.0,0.0492015]
[1644277650523,0.314305,43943.0,43942.0,0.0492015]
[1644277654388,0.33868051,43949.0,43942.0,0.0492015]
[1644277654586,0.32458752,43948.0,43942.0,0.0492015]
[1644277654786,0.424288,43948.0,43943.0,0.00072324]
[1644277655220,0.1,43948.0,43943.0,0.00072324]
[1644277655818,0.00029952,43949.0,43942.0,0.0492015]
[1644277656021,0.47954246,43952.0,43943.0,0.00072324]
[1644277656022,0.00029952,43951.0,43943.0,0.00072324]
[1644277656218,0.1,43952.0,43943.0,0.00072324]
[1644277656418,0.00029952,43951.0,43943.0,0.00072324]
[1644277656618,0.15029952,43952.0,43943.0,0.00072324]
[1644277656820,0.00029952,43951.0,43943.0,0.00072324]
[1644277657028,0.00029952,43953.0,43944.0,0.056895]
[1644277657225,0.37689952,43954.0,43945.0,0.50072322]
[1644277657424,0.1236,43955.0,43945.0,0.74557838]
[1644277657622,0.3672,43957.0,43946.0,0.19485516]
[1644277658421,0.3672,43957.0,43949.0,0.0007237]
[1644277658975,0.324288,43956.0,43949.0,0.0007237]
[1644277659173,0.3672,43957.0,43949.0,0.0007237]
[1644277659576,0.324288,43956.0,43951.0,0.00072369]
[1644277659778,0.381184,43956.0,43951.0,0.00072369]
[1644277659977,0.324288,43956.0,43951.0,0.00072369]
[1644277660584,0.3672,43957.0,43951.0,0.00072369]
[1644277660883,0.3672,43957.0,43951.0,0.05760668]
[1644277661278,0.12462348,43963.0,43951.0,0.05760668]
[1644277661480,0.12462348,43963.0,43951.0,0.00072368]
[1644277661681,0.31842325,43963.0,43951.0,0.00072368]
[1644277661879,0.056892,43960.0,43948.0,0.19485516]
[1644277662078,0.056892,43960.0,43955.0,0.00072364]
[1644277662277,0.113786,43962.0,43955.0,0.00072364]
[1644277662278,0.374288,43959.0,43955.0,0.00072364]
[1644277662724,0.324288,43958.0,43955.0,0.00072364]
[1644277663130,0.324288,43958.0,43947.0,0.21646134]
[1644277663325,0.05,43959.0,43954.0,0.00072365]
[1644277663525,0.324288,43958.0,43954.0,0.00072365]
[1644277663824,0.05,43958.0,43954.0,0.00072365]
[1644277664025,0.0497261,43958.0,43954.0,0.00072365]
[1644277664225,0.40601871,43961.0,43951.0,0.01864234]
[1644277664426,0.30601871,43961.0,43954.0,0.00072365]
[1644277664829,0.43219727,43963.0,43954.0,0.00072365]
[1644277665028,0.1815105,43963.0,43954.0,0.00072365]
[1644277665527,0.1239,43963.0,43950.0,0.01917731]
[1644277665731,0.324288,43962.0,43956.0,0.00072363]
[1644277666126,0.374288,43962.0,43956.0,0.00072363]
[1644277666367,0.324288,43960.0,43956.0,0.00072363]
[1644277666771,0.05,43962.0,43950.0,0.01917731]
[1644277666969,0.11459186,43963.0,43956.0,0.00069197]
[1644277667168,0.11459186,43963.0,43953.0,0.04757597]
[1644277667468,0.16459186,43963.0,43953.0,0.04757597]
[1644277667671,0.25848733,43963.0,43952.0,0.02053946]
[1644277667872,0.324288,43961.0,43952.0,0.02053946]
[1644277668068,0.05689358,43959.0,43952.0,0.02053946]
[1644277668272,0.324288,43958.0,43952.0,0.02053946]
[1644277668671,0.1,43961.0,43952.0,0.02053946]
[1644277668970,0.1639,43963.0,43952.0,0.02053946]
[1644277669168,0.324288,43962.0,43952.0,0.00368381]
[1644277669370,0.324288,43962.0,43954.0,0.00046835]
[1644277669971,0.1139,43963.0,43954.0,0.00046835]
[1644277670220,0.1139,43963.0,43950.0,0.19485516]
[1644277670419,0.1139,43963.0,43954.0,0.00072367]
[1644277670623,0.00072355,43961.0,43954.0,0.00072367]
[1644277671625,0.00072355,43961.0,43954.0,0.00072366]
[1644277671626,0.05689,43961.0,43954.0,0.00072366]
[1644277671825,0.324288,43960.0,43954.0,0.00072366]
[1644277672021,0.43807537,43960.0,43954.0,0.00072366]
[1644277672323,0.324288,43959.0,43954.0,0.00072366]
[1644277672720,0.424288,43959.0,43947.0,0.19485516]
[1644277672924,0.38117973,43958.0,43954.0,0.00072366]
[1644277673122,0.324288,43957.0,43954.0,0.00072366]
[1644277673967,0.00029933,43958.0,43947.0,0.19485516]
[1644277674268,0.00029933,43957.0,43953.0,0.00072366]
[1644277674468,0.00029933,43959.0,43953.0,0.00072366]
[1644277674671,0.00029933,43960.0,43953.0,0.00072366]
[1644277674868,0.00102287,43961.0,43953.0,0.00072366]
[1644277675067,0.32458733,43960.0,43948.0,0.01873216]
[1644277675267,0.05,43960.0,43954.0,0.00072366]
[1644277675568,0.324288,43959.0,43954.0,0.00072366]
[1644277675767,0.32458733,43959.0,43954.0,0.00072366]
[1644277676368,0.32458733,43959.0,43950.0,0.056885]
[1644277676569,0.00029933,43959.0,43954.0,0.00072366]
[1644277677267,0.00072354,43961.0,43954.0,0.00072366]
[1644277677468,0.00029933,43960.0,43950.0,0.056885]
[1644277677720,0.0221089,43961.0,43954.0,0.00072366]
[1644277677921,0.00029933,43960.0,43954.0,0.00072366]
[1644277678223,0.0221089,43961.0,43954.0,0.00072366]
[1644277678421,0.00029933,43960.0,43954.0,0.00072366]
[1644277678626,0.0221089,43961.0,43954.0,0.00072366]
[1644277678921,0.00029933,43960.0,43954.0,0.00072366]
[1644277679121,0.0221089,43961.0,43954.0,0.00072366]
[1644277679321,0.00029933,43960.0,43954.0,0.00072366]
[1644277679620,0.00072354,43961.0,43954.0,0.00072366]
[1644277679820,0.00029933,43960.0,43949.0,0.21585081]
[1644277680023,0.00029933,43961.0,43954.0,0.00072366]
[1644277680220,0.00072355,43961.0,43954.0,0.00072366]
[1644277680420,0.00268569,43959.0,43954.0,0.00072366]
[1644277681021,0.00268569,43959.0,43953.0,0.056881]
[1644277681227,0.00268569,43959.0,43954.0,0.00072366]
[1644277681669,0.00298502,43959.0,43954.0,0.00072366]
[1644277681869,0.00268569,43959.0,43954.0,0.00072366]
[1644277682268,0.00268569,43959.0,43953.0,0.056881]
[1644277682469,0.00268569,43959.0,43954.0,0.00072366]
[1644277682668,0.00298502,43959.0,43954.0,0.00072366]
[1644277682869,0.00268569,43959.0,43954.0,0.00072366]
[1644277683473,0.00268569,43959.0,43954.0,0.056882]
[1644277683672,0.00268569,43959.0,43954.0,0.05760566]
[1644277684774,0.00268569,43959.0,43954.0,0.056882]
[1644277684975,0.00268569,43959.0,43954.0,0.05760566]
[1644277685219,0.00029933,43959.0,43954.0,0.05760566]
[1644277685418,0.00029933,43960.0,43954.0,0.05760566]
[1644277685622,0.00072354,43961.0,43954.0,0.05760566]
[1644277685818,0.00029933,43960.0,43954.0,0.05760566]
[1644277686118,0.00102288,43961.0,43954.0,0.05260566]
[1644277686317,0.00029933,43960.0,43954.0,0.05260566]
[1644277686521,0.00072355,43961.0,43954.0,0.05260566]
[1644277686719,0.00029933,43960.0,43954.0,0.05260566]
[1644277686920,0.00102288,43961.0,43954.0,0.05260566]
[1644277687117,0.00029933,43960.0,43954.0,0.051882]
[1644277687322,0.00072354,43961.0,43954.0,0.05260566]
[1644277688218,0.00029933,43962.0,43954.0,0.051882]
[1644277688418,0.11689502,43963.0,43954.0,0.05260566]
[1644277688618,0.00072355,43961.0,43954.0,0.05260566]
[1644277689077,0.00072355,43961.0,43954.0,0.10260566]
[1644277689474,0.00029933,43962.0,43954.0,0.101882]
[1644277689674,0.11689502,43963.0,43954.0,0.10260566]
[1644277689876,0.00072355,43961.0,43954.0,0.10260566]
[1644277690077,0.00272552,43960.0,43954.0,0.10260566]
[1644277690477,0.00302485,43960.0,43954.0,0.10260566]
[1644277690677,0.00302485,43960.0,43954.0,0.101882]
[1644277690877,0.00272552,43960.0,43954.0,0.10260566]
[1644277691078,0.00210123,43960.0,43954.0,0.10260566]
[1644277691978,0.00210123,43960.0,43954.0,0.051882]
[1644277692178,0.0018019,43960.0,43954.0,0.05260566]
[1644277692380,0.00210123,43960.0,43954.0,0.05260566]
[1644277693420,0.0018019,43960.0,43954.0,0.05260566]
[1644277693620,0.00210123,43960.0,43954.0,0.05260566]
[1644277694224,0.00210123,43960.0,43954.0,0.101882]
[1644277694420,0.0018019,43960.0,43954.0,0.051882]
[1644277694621,0.0018019,43960.0,43954.0,0.10260566]
[1644277694823,0.00210123,43960.0,43954.0,0.10260566]
[1644277695020,0.00210123,43960.0,43954.0,0.05260566]
[1644277695423,0.00210123,43960.0,43954.0,0.051882]
[1644277695621,0.00029933,43962.0,43954.0,0.05260566]
[1644277695824,0.00072354,43961.0,43954.0,0.10260566]
[1644277696472,0.00072354,43961.0,43957.0,0.05]
[1644277696672,0.00029933,43962.0,43957.0,0.05]
[1644277696875,0.00029933,43963.0,43957.0,0.05]
[1644277697071,0.00072355,43961.0,43957.0,0.05]
[1644277697973,0.00029933,43963.0,43957.0,0.05]
[1644277698172,0.00072355,43961.0,43957.0,0.05]
[1644277699173,0.00029933,43963.0,43957.0,0.05]
[1644277699376,0.27821621,43964.0,43957.0,0.05]
[1644277699377,0.00072355,43961.0,43957.0,0.05]
[1644277699672,0.00072355,43961.0,43956.0,0.05688]
[1644277699673,0.00072355,43961.0,43956.0,0.00763322]
[1644277700336,0.00029933,43963.0,43956.0,0.00763322]
[1644277700337,0.19427299,43963.0,43956.0,0.00763322]
[1644277700534,0.00072355,43961.0,43956.0,0.00763322]
[1644277701534,0.00029933,43963.0,43956.0,0.00763322]
[1644277701735,0.00072355,43961.0,43956.0,0.00763322]
[1644277702736,0.05029933,43962.0,43956.0,0.00763322]
[1644277702940,0.26560884,43961.0,43955.0,0.19506921]
[1644277703140,0.05,43960.0,43954.0,0.19579288]
[1644277703639,0.00029933,43960.0,43954.0,0.19579288]
[1644277703873,0.101888,43959.0,43954.0,0.19506921]
[1644277704072,0.101888,43959.0,43954.0,0.19579287]
[1644277704273,0.101888,43959.0,43954.0,0.00072366]
[1644277704478,0.158776,43959.0,43954.0,0.19579287]
[1644277704874,0.21566535,43959.0,43954.0,0.00072366]
[1644277705076,0.26425811,43958.0,43953.0,0.19506921]
[1644277705280,0.26425811,43958.0,43951.0,0.21421896]
[1644277705281,0.045,43954.0,43951.0,0.21421896]
[1644277705477,0.056895,43953.0,43950.0,0.19506921]
[1644277705877,0.10189436,43954.0,43950.0,0.19506921]
[1644277706177,0.101894,43954.0,43950.0,0.19506921]
[1644277706375,0.36562127,43954.0,43950.0,0.19506921]
[1644277706574,0.36562127,43954.0,43950.0,0.19579291]
[1644277706981,0.36562127,43954.0,43950.0,0.0007237]
[1644277707180,0.32062127,43954.0,43950.0,0.0007237]
[1644277707379,0.045,43953.0,43950.0,0.0007237]
[1644277707625,0.045,43953.0,43949.0,0.19506921]
[1644277707822,0.045,43953.0,43950.0,0.0007237]
[1644277708226,0.151894,43953.0,43950.0,0.0007237]
[1644277708425,0.381195,43952.0,43950.0,0.0007237]
[1644277708823,0.531195,43952.0,43947.0,0.01840932]
[1644277709022,0.531195,43952.0,43949.0,0.00072371]
[1644277709224,0.045,43950.0,43949.0,0.00072371]
[1644277709426,0.10190262,43950.0,43949.0,0.00072371]
[1644277709629,0.369288,43950.0,43949.0,0.00072371]
[1644277710024,0.045,43950.0,43944.0,0.19506921]
[1644277710224,0.045,43950.0,43947.0,0.00072372]
[1644277710225,0.324288,43949.0,43947.0,0.00072372]
[1644277710425,0.26251978,43948.0,43947.0,0.00072372]
[1644277711228,0.26251978,43948.0,43944.0,0.19506921]
[1644277711470,0.26251978,43948.0,43945.0,0.00072374]
[1644277712471,0.26251978,43948.0,43943.0,0.19506921]
[1644277712669,0.26251978,43948.0,43944.0,0.00072375]
[1644277713471,0.26251978,43948.0,43943.0,0.19506921]
[1644277713672,0.26251978,43948.0,43944.0,0.0007004]
[1644277713874,0.26251978,43948.0,43944.0,0.19576961]
[1644277714672,0.26251978,43948.0,43943.0,0.19506921]
[1644277715123,0.26251978,43948.0,43944.0,0.0007004]
[1644277715518,0.045,43950.0,43944.0,0.0007004]
[1644277715920,0.05,43951.0,43943.0,0.25196521]
[1644277716118,0.095,43951.0,43945.0,0.00070039]
[1644277716720,0.151899,43951.0,43945.0,0.00070039]
[1644277717221,0.151899,43951.0,43943.0,0.19505923]
[1644277717426,0.151899,43951.0,43946.0,0.000677]
[1644277717623,0.324288,43950.0,43946.0,0.000677]
[1644277717822,0.056901,43950.0,43946.0,0.000677]
[1644277718222,0.26357255,43949.0,43946.0,0.000677]
[1644277718423,0.37737855,43949.0,43942.0,0.24426073]
[1644277718621,0.4144272,43949.0,43946.0,0.000677]
[1644277718871,0.3006212,43949.0,43946.0,0.000677]
[1644277719673,0.3006212,43949.0,43943.0,0.19505923]
[1644277719874,0.3006212,43949.0,43945.0,0.00067701]
[1644277720978,0.3006212,43949.0,43945.0,0.00067859]
[1644277721978,0.3006212,43949.0,43943.0,0.19505923]
[1644277722181,0.03704865,43949.0,43945.0,0.00067859]
[1644277722625,0.27583356,43950.0,43945.0,0.00067859]
[1644277722822,0.32583356,43950.0,43945.0,0.00067859]
[1644277723225,0.32583356,43950.0,43945.0,0.19505923]
[1644277723425,0.32583356,43950.0,43945.0,0.00067858]
[1644277724325,0.32583356,43950.0,43944.0,0.19505923]
[1644277724526,0.05,43950.0,43945.0,0.00067848]
[1644277724729,0.095,43951.0,43945.0,0.19573771]
[1644277724730,0.05,43951.0,43945.0,0.19573771]
[1644277724928,0.05,43951.0,43946.0,0.19505923]
[1644277725132,0.05,43952.0,43946.0,0.19505923]
[1644277725326,0.01835934,43954.0,43946.0,0.19505923]
[1644277725530,0.01835934,43954.0,43947.0,0.19505923]
[1644277725531,0.01886174,43954.0,43947.0,0.19505923]
[1644277725731,0.01886174,43954.0,43948.0,0.00067845]
[1644277726370,0.01886174,43954.0,43948.0,0.05756545]
[1644277726570,0.01886174,43954.0,43948.0,0.25262468]
[1644277726770,0.01886174,43954.0,43948.0,0.25194623]
[1644277726971,0.01886174,43954.0,43949.0,0.00067844]
[1644277727173,0.01886174,43954.0,43949.0,0.19573767]
[1644277727575,0.47829933,43958.0,43950.0,0.25694623]
[1644277727776,0.36329933,43958.0,43950.0,0.25694623]
[1644277728271,0.00029933,43958.0,43952.0,0.00067842]
[1644277728470,0.462888,43959.0,43952.0,0.00067842]
[1644277728670,0.00029933,43958.0,43952.0,0.00067842]
[1644277728872,0.45629933,43959.0,43952.0,0.00067842]
[1644277729070,0.00029933,43958.0,43952.0,0.00067842]
[1644277729372,0.456,43959.0,43953.0,0.00067841]
[1644277729571,0.00029933,43958.0,43953.0,0.00067841]
[1644277729771,0.456,43959.0,43951.0,0.19505923]
[1644277729971,0.00029933,43958.0,43951.0,0.19505923]
[1644277730224,0.45629933,43959.0,43951.0,0.19505923]
[1644277730429,0.00029933,43958.0,43952.0,0.056885]
[1644277730724,0.456,43959.0,43952.0,0.056885]
[1644277731927,0.411,43959.0,43952.0,0.056885]
[1644277733129,0.00067885,43958.0,43952.0,0.056885]
[1644277733971,0.41129933,43959.0,43952.0,0.056885]
[1644277734172,0.00067885,43957.0,43952.0,0.056885]
[1644277735375,0.00067832,43957.0,43952.0,0.056885]
[1644277736176,0.35697765,43959.0,43952.0,0.3]
[1644277736376,0.35667832,43959.0,43952.0,0.3]
[1644277736777,0.00067832,43957.0,43951.0,0.19573765]
[1644277737278,0.11445892,43957.0,43951.0,0.19573765]
[1644277737477,0.00067832,43957.0,43951.0,0.19573765]
[1644277737723,0.40197765,43959.0,43951.0,0.19505923]
[1644277737928,0.40167832,43959.0,43951.0,0.19505923]
[1644277738126,0.40193461,43959.0,43951.0,0.19505923]
[1644277738522,0.35693461,43959.0,43951.0,0.19505923]
[1644277738724,0.40167832,43959.0,43951.0,0.19505923]
[1644277738923,0.40167832,43959.0,43953.0,0.00072366]
[1644277739125,0.45928888,43959.0,43953.0,0.00072366]
[1644277739624,0.45958821,43959.0,43953.0,0.00072366]
[1644277740026,0.324288,43958.0,43950.0,0.20005923]
[1644277740224,0.045,43956.0,43953.0,0.00072367]
[1644277740826,0.3119124,43958.0,43953.0,0.00072367]
[1644277741227,0.3119124,43958.0,43950.0,0.19505923]
[1644277741475,0.3119124,43958.0,43953.0,0.00072367]
[1644277741774,0.05,43958.0,43953.0,0.00072367]
[1644277741975,0.31498937,43958.0,43953.0,0.00072367]
[1644277742378,0.05,43958.0,43950.0,0.19505923]
[1644277742579,0.2665605,43957.0,43953.0,0.00072367]
[1644277743182,0.056892,43957.0,43953.0,0.00072367]
[1644277743380,0.31836378,43958.0,43953.0,0.00072367]
[1644277743580,0.31836378,43958.0,43950.0,0.19505923]
[1644277743781,0.05,43958.0,43953.0,0.00072366]
[1644277744782,0.05,43958.0,43950.0,0.25194623]
[1644277744981,0.05,43958.0,43953.0,0.00072367]
[1644277745233,0.106889,43958.0,43953.0,0.00072367]
[1644277745740,0.324288,43957.0,43953.0,0.00072367]
[1644277746133,0.324288,43957.0,43950.0,0.19505923]
[1644277746332,0.056893,43956.0,43953.0,0.00072366]
[1644277746732,0.095,43958.0,43953.0,0.00072366]
[1644277747135,0.324288,43957.0,43953.0,0.00072366]
[1644277747334,0.324288,43957.0,43949.0,0.19505923]
[1644277747335,0.28527126,43956.0,43949.0,0.19505923]
[1644277747532,0.324288,43955.0,43953.0,0.00072367]
[1644277747733,0.26824468,43954.0,43953.0,0.00072367]
[1644277748534,0.26824468,43954.0,43949.0,0.19504896]
[1644277748738,0.26824468,43954.0,43951.0,0.00072368]
[1644277749270,0.26324468,43954.0,43951.0,0.00072368]
[1644277749671,0.26324468,43954.0,43946.0,0.005]
[1644277749871,0.26324468,43954.0,43950.0,0.00072369]
[1644277750271,0.31324468,43954.0,43950.0,0.00072369]
[1644277750576,0.045,43953.0,43950.0,0.00072369]
[1644277750772,0.045,43953.0,43948.0,0.19505205]
[1644277750975,0.045,43953.0,43949.0,0.0007237]
[1644277751971,0.045,43953.0,43948.0,0.19505205]
[1644277752171,0.045,43953.0,43949.0,0.00046826]
[1644277753225,0.045,43953.0,43948.0,0.19505205]
[1644277754729,0.26324468,43954.0,43948.0,0.19552038]
[1644277754926,0.045,43952.0,43948.0,0.19552038]
[1644277755130,0.045,43949.0,43948.0,0.00046833]
[1644277755729,0.045,43949.0,43944.0,0.1950846]
[1644277755928,0.045,43949.0,43946.0,0.00072418]
[1644277756134,0.23805498,43947.0,43946.0,0.00072418]
[1644277756377,0.65685541,43947.0,43946.0,0.00072418]
[1644277756777,0.65685541,43947.0,43944.0,0.1950846]
[1644277756978,0.65685541,43947.0,43944.0,0.1958088]
[1644277757180,0.045,43946.0,43944.0,0.1958088]
[1644277757979,0.045,43946.0,43944.0,0.1950846]
[1644277758378,0.045,43946.0,43943.0,0.19580881]
[1644277758981,0.045,43946.0,43944.0,0.1950846]
[1644277759780,0.22194987,43946.0,43944.0,0.1950846]
[1644277759982,0.4,43945.0,43941.0,0.24385575]
[1644277760233,0.324288,43944.0,43938.0,0.0001916]
[1644277760428,0.23616926,43938.0,43937.0,0.0001916]
[1644277760629,0.23616926,43938.0,43936.0,0.0208442]
[1644277760827,0.1,43944.0,43936.0,0.0208442]
[1644277761026,0.324288,43943.0,43936.0,0.0208442]
[1644277761332,0.05691125,43942.0,43936.0,0.0208442]
[1644277761528,0.27831354,43937.0,43935.0,0.0001916]
[1644277761726,0.13713697,43937.0,43935.0,0.24385575]
[1644277761925,0.13713697,43937.0,43934.0,0.32473389]
[1644277762126,0.13713697,43937.0,43934.0,0.32454229]
[1644277762328,0.13713697,43937.0,43934.0,0.24385575]
[1644277763228,0.13713697,43937.0,43934.0,0.0001916]
[1644277763429,0.13713697,43937.0,43933.0,0.30945918]
[1644277764072,0.13713697,43937.0,43933.0,0.30899106]
[1644277764273,0.13713697,43937.0,43933.0,0.30971538]
[1644277764472,0.40079353,43937.0,43933.0,0.30971538]
[1644277764675,0.13713697,43937.0,43933.0,0.30971538]
[1644277764972,0.40735989,43937.0,43933.0,0.30971538]
[1644277765173,0.40735989,43937.0,43933.0,0.24385575]
[1644277765373,0.40735989,43937.0,43933.0,0.00072432]
[1644277765771,0.40735989,43937.0,43933.0,0.00091592]
[1644277765973,8.051e-05,43936.0,43933.0,0.00091592]
[1644277766173,8.051e-05,43936.0,43933.0,0.00072432]
[1644277766372,8.051e-05,43936.0,43932.0,0.0001916]
[1644277766578,8.051e-05,43936.0,43932.0,0.00072432]
[1644277766773,8.051e-05,43936.0,43932.0,0.00091592]
[1644277767173,8.051e-05,43936.0,43932.0,0.00072432]
[1644277767373,0.05699551,43936.0,43932.0,0.00072432]
[1644277767631,8.051e-05,43936.0,43931.0,0.0001916]
[1644277767821,8.051e-05,43936.0,43932.0,0.00072433]
[1644277768823,8.051e-05,43936.0,43931.0,0.0001916]
[1644277769022,8.051e-05,43936.0,43932.0,0.00072433]
[1644277769228,0.25616363,43934.0,43932.0,0.00072433]
[1644277770022,0.25616363,43934.0,43930.0,0.0001916]
[1644277770223,0.25616363,43934.0,43931.0,0.00072434]
[1644277770424,8.051e-05,43936.0,43931.0,0.00072434]
[1644277770824,8.051e-05,43936.0,43932.0,0.07221384]
[1644277771025,8.051e-05,43936.0,43932.0,0.0001916]
[1644277771226,0.05008051,43936.0,43930.0,0.0001916]
[1644277771477,0.24938037,43936.0,43932.0,0.00072433]
[1644277772376,0.20473024,43934.0,43930.0,0.0001916]
[1644277772676,0.20473024,43934.0,43932.0,0.00072433]
[1644277773279,0.30629637,43936.0,43932.0,0.00072433]
[1644277773579,0.30629637,43936.0,43930.0,0.0001916]
[1644277773780,0.30629637,43936.0,43932.0,0.00072433]
[1644277774383,0.25291545,43935.0,43932.0,0.00072433]
[1644277774780,0.25291545,43935.0,43930.0,0.0001916]
[1644277774981,0.25291545,43935.0,43931.0,0.00072434]
[1644277775228,0.30629637,43936.0,43931.0,0.00072434]
[1644277775630,0.24938037,43936.0,43931.0,0.00072434]
[1644277776131,0.24938037,43936.0,43930.0,0.0001916]
[1644277776327,0.24938037,43936.0,43931.0,0.00072434]
[1644277777330,0.24938037,43936.0,43930.0,0.0001916]
[1644277777529,0.05008051,43936.0,43931.0,0.00072434]
[1644277778028,0.05008051,43936.0,43932.0,0.009927]
[1644277778228,0.05008051,43936.0,43932.0,0.0101186]
[1644277778628,0.05008051,43936.0,43932.0,0.01065133]
[1644277778871,0.05008051,43936.0,43932.0,0.23813618]
[1644277779271,0.30895485,43936.0,43932.0,0.22820918]
[1644277779672,0.30895485,43936.0,43932.0,0.22748485]
[1644277779871,0.30895485,43936.0,43932.0,0.22820918]
[1644277780473,0.30895485,43936.0,43932.0,0.21820918]
[1644277780872,0.38863633,43936.0,43932.0,0.21748485]
[1644277781075,0.38863633,43936.0,43932.0,0.21820918]
[1644277781677,0.38863633,43936.0,43930.0,0.0001916]
[1644277781678,0.48863633,43936.0,43930.0,0.0001916]
[1644277781880,0.05692,43935.0,43929.0,0.0001916]
[1644277782084,0.324288,43934.0,43927.0,0.0001916]
[1644277782279,0.324288,43934.0,43924.0,0.01979413]
[1644277782280,0.05692484,43930.0,43924.0,0.01998573]
[1644277782629,0.20017673,43925.0,43924.0,0.01979413]
[1644277782826,0.21798168,43925.0,43924.0,0.01979413]
[1644277784022,0.54226968,43925.0,43924.0,0.01979413]
[1644277784222,0.54226968,43925.0,43921.0,0.0001916]
[1644277784422,0.21798168,43925.0,43920.0,0.17709505]
[1644277784626,0.21798168,43925.0,43920.0,0.17728665]
[1644277784823,0.26897031,43924.0,43920.0,0.1001916]
[1644277785224,0.26897031,43924.0,43920.0,0.1]
[1644277785425,0.32310661,43923.0,43920.0,0.1]
[1644277785631,0.32310661,43923.0,43912.0,0.43288501]
[1644277785632,0.49716444,43922.0,43916.0,0.0001916]
[1644277785828,0.07611168,43914.0,43913.0,0.0001916]
[1644277786028,0.07611168,43914.0,43912.0,0.01964972]
[1644277786029,0.25908407,43913.0,43912.0,0.01964972]
[1644277786230,0.25908407,43913.0,43912.0,0.01945812]
[1644277786674,0.31603007,43913.0,43912.0,0.01945812]
[1644277786873,0.31603007,43913.0,43912.0,0.00945812]
[1644277786874,0.25908407,43913.0,43912.0,0.00945812]
[1644277787675,0.58338007,43913.0,43911.0,0.0201916]
[1644277787875,0.381239,43912.0,43911.0,0.02]
[1644277788276,0.64647804,43912.0,43911.0,0.02]
[1644277788979,0.58953504,43912.0,43911.0,0.02]
[1644277791224,0.324296,43912.0,43911.0,0.02]
[1644277791631,0.2,43911.0,43910.0,0.0001916]
[1644277791830,0.2,43911.0,43909.0,0.00072494]
[1644277791831,0.874296,43911.0,43909.0,0.00072494]
[1644277792031,0.324296,43910.0,43909.0,0.00072494]
[1644277792225,0.374296,43910.0,43909.0,0.00072494]
[1644277792429,0.056952,43907.0,43902.0,0.0103811]